fUSD/lending_fUSD_20240619
["ID","MTS","AMOUNT","RATE_DAILY","PERIOD"]
[329887887,1718795437220,-500.0,0.00013698,2]
[329887888,1718795437230,-500.0,0.00013698,2]
[329887889,1718795437240,-500.0,0.00013698,2]
[329887890,1718795437250,-281.41858426,0.00013698,2]
[329887891,1718795437260,-500.0,0.00013698,2]
[329887892,1718795437269,-500.0,0.00013698,2]
[329887893,1718795437279,-2451.851588,0.00013698,2]
[329887894,1718795437288,-2451.851588,0.00013698,2]
[329887895,1718795437298,-1512.54,0.00013698,2]
[329887896,1718795437314,-2451.851588,0.00013698,2]
[329887897,1718795437324,-2451.851588,0.00013698,2]
[329887898,1718795437334,-2451.851588,0.00013698,2]
[329887899,1718795437344,-2451.851588,0.00013698,2]
[329887900,1718795437355,-2451.851588,0.00013698,2]
[329887901,1718795437365,-2451.851588,0.00013698,2]
[329887902,1718795437375,-500.0,0.00013698,2]
[329887903,1718795437384,-500.0,0.00013698,2]
[329887904,1718795437395,-500.0,0.00013698,2]
[329887905,1718795437405,-2451.851588,0.00013698,2]
[329887906,1718795437415,-304.54963621,0.00013698,2]
[329887927,1718795440930,-669.168,0.00013698,2]
[329887928,1718795440942,-1478.13395179,0.00013698,2]
[329887929,1718795440954,-2451.851588,0.00013698,2]
[329887930,1718795440964,-1077.70806021,0.00013698,2]
[329887931,1718795440976,-1374.14352779,0.00013698,2]
[329887932,1718795440986,-625.85647221,0.00013698,2]
[329887933,1718795440999,-1825.99511579,0.00013698,2]
[329887934,1718795441009,-2451.851588,0.00013698,2]
[329887935,1718795441019,-2451.851588,0.00013698,2]
[329887936,1718795441029,-2451.851588,0.00013698,2]
[329887937,1718795441039,-2092.2,0.00013698,2]
[329887938,1718795441048,-2451.851588,0.00013698,2]
[329887939,1718795441058,-500.0,0.00013698,2]
[329887940,1718795441068,-2451.851588,0.00013698,2]
[329887941,1718795441078,-2451.851588,0.00013698,2]
[329887942,1718795441087,-2451.851588,0.00013698,2]
[329887943,1718795441098,-500.0,0.00013698,2]
[329887944,1718795441108,-500.0,0.00013698,2]
[329887945,1718795441118,-168.50680388,0.00013698,2]
[329887946,1718795441127,-2417.92,0.00013698,2]
[329887947,1718795441138,-902.18,0.00013698,2]
[329887948,1718795441148,-500.0,0.00013698,2]
[329887949,1718795441157,-1511.52,0.00013698,2]
[329887950,1718795441167,-500.0,0.00013698,2]
[329887951,1718795441177,-706.65,0.00013698,2]
[329887952,1718795441187,-600.46,0.00013698,2]
[329887953,1718795441196,-523.58,0.00013698,2]
[329887954,1718795441208,-1027.87,0.00013698,2]
[329887955,1718795441217,-500.0,0.00013698,2]
[329887956,1718795441226,-500.0,0.00013698,2]
[329887957,1718795441235,-707.43,0.00013698,2]
[329887958,1718795441244,-1672.39514376,0.00013698,2]
[329887959,1718795441629,-500.0,0.00013698,2]
[329887960,1718795441639,-500.0,0.00013698,2]
[329887961,1718795441649,-2011.81,0.00013698,2]
[329887962,1718795441659,-3897.7,0.00013698,2]
[329887963,1718795441668,-500.0,0.00013698,2]
[329887964,1718795441678,-1591.81,0.00013698,2]
[329887965,1718795441687,-500.0,0.00013698,2]
[329887966,1718795441697,-500.0,0.00013698,2]
[329887967,1718795441708,-500.0,0.00013698,2]
[329887968,1718795441717,-1343.0,0.00013698,2]
[329887969,1718795441727,-1193.2,0.00013698,2]
[329887970,1718795441736,-500.0,0.00013698,2]
[329887971,1718795441746,-1048.41,0.00013698,2]
[329887972,1718795441755,-500.0,0.00013698,2]
[329887973,1718795441765,-500.0,0.00013698,2]
[329887974,1718795441775,-7499.47,0.00013698,2]
[329887975,1718795441784,-238.61733022,0.00013698,2]
[329887976,1718795441794,-500.0,0.00013698,2]
[329887977,1718795441804,-984.8,0.00013698,2]
[329887978,1718795441814,-1247.05,0.00013698,2]
[329887979,1718795441823,-3046.09,0.00013698,2]
[329887980,1718795441833,-2106.22,0.00013698,2]
[329887981,1718795441842,-834.72,0.00013698,2]
[329887982,1718795441852,-814.65,0.00013698,2]
[329887983,1718795441861,-1082.03,0.00013698,2]
[329887984,1718795441870,-950.75,0.00013698,2]
[329887985,1718795441879,-500.0,0.00013698,2]
[329887986,1718795441888,-1210.69,0.00013698,2]
[329887987,1718795441898,-1416.14,0.00013698,2]
[329887988,1718795441907,-13061.2,0.00013698,2]
[329887989,1718795441917,-815.05,0.00013698,2]
[329887990,1718795441927,-608.12,0.00013698,2]
[329887991,1718795441936,-1028.11,0.00013698,2]
[329887992,1718795441946,-708.0,0.00013698,2]
[329887993,1718795441958,-500.0,0.00013698,2]
[329887994,1718795441967,-6065.05,0.00013698,2]
[329887995,1718795441976,-500.0,0.00013698,2]
[329887996,1718795441986,-500.0,0.00013698,2]
[329887997,1718795441996,-1666.95,0.00013698,2]
[329887998,1718795442005,-500.0,0.00013698,2]
[329887999,1718795442015,-110.23341608,0.00013698,2]
[329888000,1718795442029,-6598.74658392,0.00013698,2]
[329888001,1718795442039,-524.4,0.00013698,2]
[329888002,1718795442048,-2099.05,0.00013698,2]
[329888003,1718795442059,-2014.95,0.00013698,2]
[329888004,1718795442068,-1103.95,0.00013698,2]
[329888005,1718795442078,-500.0,0.00013698,2]
[329888006,1718795442087,-500.0,0.00013698,2]
[329888007,1718795442098,-500.0,0.00013698,2]
[329888008,1718795442107,-1337.99,0.00013698,2]
[329888009,1718795442117,-967.45,0.00013698,2]
[329888010,1718795442127,-1820.42,0.00013698,2]
[329888011,1718795442136,-792.77,0.00013698,2]
[329888012,1718795442145,-12840.08,0.00013698,2]
[329888013,1718795442155,-2082.65,0.00013698,2]
[329888014,1718795442164,-500.0,0.00013698,2]
[329888015,1718795442173,-4068.49,0.00013698,2]
[329888016,1718795442183,-500.0,0.00013698,2]
[329888017,1718795442192,-725.48,0.00013698,2]
[329888018,1718795442203,-500.0,0.00013698,2]
[329888019,1718795442212,-1046.34,0.00013698,2]
[329888020,1718795442222,-500.0,0.00013698,2]
[329888021,1718795442231,-1477.26,0.00013698,2]
[329888022,1718795442241,-500.0,0.00013698,2]
[329888023,1718795442250,-500.0,0.00013698,2]
[329888024,1718795442260,-500.0,0.00013698,2]
[329888025,1718795442270,-664.11,0.00013698,2]
[329888026,1718795442280,-593.67,0.00013698,2]
[329888027,1718795442290,-1779.82,0.00013698,2]
[329888028,1718795442300,-1412.77,0.00013698,2]
[329888029,1718795442315,-1719.14,0.00013698,2]
[329888030,1718795442325,-526.44,0.00013698,2]
[329888031,1718795442335,-4330.5,0.00013698,2]
[329888032,1718795442344,-500.0,0.00013698,2]
[329888033,1718795442355,-500.0,0.00013698,2]
[329888034,1718795442365,-1629.71,0.00013698,2]
[329888035,1718795442374,-1538.57,0.00013698,2]
[329888036,1718795442385,-503.20583993,0.00013698,2]
[329888037,1718795442395,-2264.61,0.00013698,2]
[329888038,1718795442406,-31412.62014653,0.00013698,2]
[329888039,1718795442419,-382.60523184,0.00013698,2]
[329888040,1718795442431,-470.16787039,0.00013698,2]
[329888041,1718795442442,-4019.09127962,0.00013698,2]
[329888042,1718795442455,-315.6,0.00013698,2]
[329888043,1718795442466,-807.50002,0.00013698,2]
[329888044,1718795442477,-4694.51545162,0.00013698,2]
[329888045,1718795442486,-1581.7892668,0.00013698,2]
[329888046,1718795442498,-1849.3007332,0.00013698,2]
[329888047,1718795442508,-312.6135308,0.00013698,2]
[329888048,1718795442519,-1100.6864692,0.00013698,2]
[329888049,1718795442528,-734.32,0.00013698,2]
[329888050,1718795442537,-740.37,0.00013698,2]
[329888051,1718795442547,-500.0,0.00013698,2]
[329888052,1718795442556,-755.40941867,0.00013698,2]
[329888053,1718795442623,-15532.22058133,0.00013698,2]
[329888054,1718795442633,-750.95,0.00013698,2]
[329888055,1718795442643,-500.0,0.00013698,2]
[329888056,1718795442653,-2116.58,0.00013698,2]
[329888057,1718795442663,-1041.87,0.00013698,2]
[329888058,1718795442672,-151.0,0.00013698,2]
[329888059,1718795442682,-788.8,0.00013698,2]
[329888061,1718795442691,-3368.88,0.00013698,2]
[329888062,1718795442700,-768.94,0.00013698,2]
[329888064,1718795442710,-600.04,0.00013698,2]
[329888065,1718795442719,-245.221541,0.00013698,2]
[329888068,1718795442898,-500.0,0.00013698,2]
[329888071,1718795442920,-245.221541,0.00013698,2]
[329888074,1718795442930,-245.221541,0.00013698,2]
[329888079,1718795442940,-245.221541,0.00013698,2]
[329888083,1718795442949,-245.221541,0.00013698,2]
[329888085,1718795442959,-245.221541,0.00013698,2]
[329888087,1718795442968,-245.221541,0.00013698,2]
[329888089,1718795442977,-500.0,0.00013698,2]
[329888091,1718795442986,-245.221541,0.00013698,2]
[329888093,1718795442996,-1343.79,0.00013698,2]
[329888095,1718795443006,-245.221541,0.00013698,2]
[329888097,1718795443015,-245.221541,0.00013698,2]
[329888099,1718795443024,-245.221541,0.00013698,2]
[329888100,1718795443033,-245.221541,0.00013698,2]
[329888102,1718795443043,-245.221541,0.00013698,2]
[329888104,1718795443052,-732.85,0.00013698,2]
[329888106,1718795443062,-245.221541,0.00013698,2]
[329888108,1718795443071,-5680.97,0.00013698,2]
[329888110,1718795443080,-245.221541,0.00013698,2]
[329888111,1718795443089,-245.221541,0.00013698,2]
[329888112,1718795443098,-245.221541,0.00013698,2]
[329888113,1718795443108,-245.221541,0.00013698,2]
[329888114,1718795443117,-1599.02,0.00013698,2]
[329888115,1718795443126,-245.221541,0.00013698,2]
[329888116,1718795443135,-245.221535,0.00013698,2]
[329888117,1718795443145,-3100.14,0.00013698,2]
[329888118,1718795443154,-500.0,0.00013698,2]
[329888119,1718795443163,-500.0,0.00013698,2]
[329888120,1718795443173,-1608.14,0.00013698,2]
[329888121,1718795443183,-500.0,0.00013698,2]
[329888122,1718795443193,-500.0,0.00013698,2]
[329888123,1718795443205,-3346.25,0.00013698,2]
[329888124,1718795443214,-2828.34,0.00013698,2]
[329888125,1718795443223,-500.0,0.00013698,2]
[329888126,1718795443234,-909.76,0.00013698,2]
[329888127,1718795443244,-1131.02,0.00013698,2]
[329888128,1718795443253,-500.0,0.00013698,2]
[329888129,1718795443262,-807.52,0.00013698,2]
[329888130,1718795443271,-500.0,0.00013698,2]
[329888131,1718795443280,-500.0,0.00013698,2]
[329888132,1718795443289,-1130.33,0.00013698,2]
[329888133,1718795443299,-550.49246173,0.00013698,2]
[329888134,1718795443310,-2159.06,0.00013698,2]
[329888135,1718795443324,-2610.24,0.00013698,2]
[329888136,1718795443334,-2985.93,0.00013698,2]
[329888137,1718795443345,-478.93982635,0.00013698,2]
[329888140,1718795444215,-1117.02017365,0.00013698,2]
[329888141,1718795444225,-500.0,0.00013698,2]
[329888142,1718795444235,-1076.88178635,0.00013698,2]
[329888143,1718795444247,-1645.84821365,0.00013698,2]
[329888144,1718795444257,-267.75245414,0.00013698,2]
[329888145,1718795444268,-344.447979,0.00013698,2]
[329888146,1718795444280,-1206.40956686,0.00013698,2]
[329888147,1718795444290,-1163.61,0.00013698,2]
[329888148,1718795444299,-583.80808298,0.00013698,2]
[329888149,1718795444312,-349.64191702,0.00013698,2]
[329888150,1718795444326,-434.7570173,0.00013698,2]
[329888151,1718795444546,-205.21041243,0.00013697,2]
[329888152,1718795444556,-250.89738316,0.00013698,2]
[329888154,1718795446044,-987.92845493,0.00013698,2]
[329888155,1718795446056,-402.7877781,0.00013698,2]
[329888156,1718795446068,-787.90323133,0.00013698,2]
[329888157,1718795446080,-331.90613518,0.00013698,2]
[329888158,1718795446089,-148.26368543,0.00013698,2]
[329888159,1718795446103,-358.54738649,0.00013698,2]
[329888160,1718795446114,-1077.15225315,0.00013698,2]
[329888162,1718795446463,-2524.86667493,0.00013698,2]
[329888163,1718795446472,-551.11593473,0.00013698,2]
[329888164,1718795446484,-448.88406527,0.00013698,2]
[329888165,1718795446494,-3628.4,0.00013698,2]
[329888166,1718795446504,-900.31,0.00013698,2]
[329888167,1718795446514,-9151.35767085,0.00013698,2]
[329888168,1718795446526,-9230.39232915,0.00013698,2]
[329888169,1718795446536,-1036.78,0.00013698,2]
[329888170,1718795446545,-1788.84,0.00013698,2]
[329888171,1718795446555,-1027.35,0.00013698,2]
[329888172,1718795446564,-793.86,0.00013698,2]
[329888173,1718795446574,-1342.11,0.00013698,2]
[329888174,1718795446584,-521.46,0.00013698,2]
[329888175,1718795446594,-1402.71,0.00013698,2]
[329888176,1718795446603,-2069.78,0.00013698,2]
[329888177,1718795446613,-500.0,0.00013698,2]
[329888178,1718795446623,-4630.69,0.00013698,2]
[329888179,1718795446632,-500.0,0.00013698,2]
[329888180,1718795446642,-1506.9,0.00013698,2]
[329888181,1718795446652,-500.0,0.00013698,2]
[329888182,1718795446662,-6732.54,0.00013698,2]
[329888183,1718795446672,-987.95,0.00013698,2]
[329888184,1718795446681,-6941.06,0.00013698,2]
[329888185,1718795446691,-823.54550411,0.00013698,2]
[329888186,1718795446704,-379.44033928,0.00013698,2]
[329888187,1718795446716,-14.91415661,0.00013698,2]
[329888188,1718795446726,-1123.36,0.00013698,2]
[329888189,1718795446735,-1000.4,0.00013698,2]
[329888190,1718795446745,-37.57544213,0.00013698,2]
[329888191,1718795446757,-787.9084716,0.00013698,2]
[329888192,1718795446768,-641.62324147,0.00013698,2]
[329888193,1718795446780,-1130.3589764,0.00013698,2]
[329888194,1718795446792,-517.70657347,0.00013698,2]
[329888195,1718795446803,-3992.46729493,0.00013698,2]
[329888196,1718795446813,-1463.26,0.00013698,2]
[329888197,1718795446822,-500.0,0.00013698,2]
[329888198,1718795446832,-1122.76,0.00013698,2]
[329888199,1718795446842,-500.0,0.00013698,2]
[329888200,1718795446851,-1299.68,0.00013698,2]
[329888201,1718795446861,-500.0,0.00013698,2]
[329888202,1718795446870,-2819.71,0.00013698,2]
[329888203,1718795446880,-500.0,0.00013698,2]
[329888204,1718795446890,-3553.6275281,0.00013698,2]
[329888205,1718795446903,-2428.5924719,0.00013698,2]
[329888206,1718795446917,-20.38071204,0.00013698,2]
[329888207,1718795446928,-1690.1852137,0.00013698,2]
[329888208,1718795446940,-264.04536918,0.00013698,2]
[329888209,1718795446952,-796.10842129,0.00013698,2]
[329888210,1718795446963,-8571.89705668,0.00013698,2]
[329888211,1718795474425,150.0,0.00010861,2]
[329888212,1718795474453,150.0,0.00010861,2]
[329888213,1718795474485,150.0,0.00010861,2]
[329888214,1718795474519,41.92,0.00010861,2]
[329888215,1718795743435,-250.0,0.00012206,2]
[329888216,1718795804354,-400.0,0.00012206,2]
[329888217,1718795954320,2300.0,0.00025,60]
[329888218,1718795988618,5000.0,0.00026,90]
[329888219,1718796047048,150.0,0.00010288,2]
[329888220,1718796047073,150.0,0.00010288,2]
[329888221,1718796047097,150.0,0.00010288,2]
[329888222,1718796047122,17.32,0.00010288,2]
[329888223,1718796066272,1000.0,0.000219,30]
[329888224,1718796093672,3984.0634141,0.00025,60]
[329888229,1718796324493,2000.0,0.00026,90]
[329888232,1718796366069,10000.0,0.00026,90]
[329888246,1718796625284,150.0,0.00010676,2]
[329888247,1718796625311,150.0,0.00010676,2]
[329888248,1718796625336,143.95,0.00010676,2]
[329888254,1718796632499,-206.29106117,0.00012533,2]
[329888255,1718796632509,-190.71810642,0.00012534,2]
[329888256,1718796632520,-69.33366722,0.00012534,2]
[329888257,1718796632531,-5590.9811096,0.00012617,2]
[329888258,1718796632540,-949.14,0.00012618,2]
[329888259,1718796632550,-250.0,0.00012641,2]
[329888260,1718796632559,-150.0,0.0001266,2]
[329888261,1718796632571,-680.0,0.0001266,2]
[329888262,1718796632581,-250.0,0.00012673,2]
[329888263,1718796632591,-165.38,0.00012796,2]
[329888264,1718796632600,-443.95,0.0001294,2]
[329888265,1718796632610,-300.0,0.00012999,2]
[329888266,1718796632619,-15031.16496434,0.00013,2]
[329888267,1718796632628,-500.0,0.000133,4]
[329888268,1718796632638,-1100.0,0.000134,4]
[329888269,1718796632647,-1037.61006565,0.00013424,2]
[329888270,1718796632657,-1600.0,0.000135,4]
[329888271,1718796632666,-999.99,0.0001356,2]
[329888272,1718796632676,-2385.66833,0.0001356,2]
[329888273,1718796632688,-346.87386265,0.0001357,2]
[329888274,1718796632701,-852.36,0.00013584,2]
[329888275,1718796632711,-418.17,0.00013584,2]
[329888276,1718796632721,-530.52,0.00013584,2]
[329888277,1718796632732,-211.9127,0.00013587,2]
[329888278,1718796632744,-6718.2816,0.00013587,2]
[329888279,1718796632754,-171.39309846,0.00013598,2]
[329888280,1718796632764,-499.99,0.00013598,2]
[329888281,1718796632775,-2132.21,0.00013598,2]
[329888282,1718796632784,-459.07,0.00013598,2]
[329888283,1718796632794,-180.83664651,0.00013598,2]
[329888284,1718796632804,-175.25547107,0.00013598,2]
[329888285,1718796632814,-322.42616488,0.00013598,2]
[329888286,1718796632824,-181.82845369,0.00013598,2]
[329888287,1718796632834,-1951.4846,0.00013598,2]
[329888288,1718796632843,-4493.6581,0.00013598,2]
[329888289,1718796632852,-164.9622,0.00013598,2]
[329888290,1718796632862,-7500.0,0.00013598,2]
[329888291,1718796632871,-157.72862368,0.00013599,2]
[329888292,1718796632881,-423.43,0.000136,2]
[329888293,1718796632891,-161.29,0.000136,2]
[329888294,1718796632900,-1054.51,0.000136,2]
[329888295,1718796632909,-2200.0,0.000136,4]
[329888296,1718796632919,-2048.2213936,0.00013687,2]
[329888297,1718796632928,-11800.7107068,0.00013687,2]
[329888298,1718796632939,-2694.8239269,0.00013687,2]
[329888299,1718796632948,-2019.6094526,0.00013687,2]
[329888300,1718796632958,-12779.4017115,0.00013687,2]
[329888302,1718796632968,-224.2608673,0.00013687,2]
[329888304,1718796632977,-69358.5439864,0.00013687,2]
[329888306,1718796632987,-6407.16391933,0.0001369,2]
[329888308,1718796632998,-167.56721354,0.00013696,2]
[329888310,1718796633008,-179.94878894,0.00013696,2]
[329888312,1718796633018,-4359.28947643,0.00013696,2]
[329888314,1718796633027,-206.41177244,0.00013696,2]
[329888316,1718796633036,-207.87759516,0.00013696,2]
[329888318,1718796633046,-263.98203934,0.00013696,2]
[329888320,1718796633055,-6538.55273159,0.00013696,2]
[329888322,1718796633065,-3845.88360665,0.00013697,2]
[329888324,1718796633074,-2913.96021865,0.00013697,2]
[329888326,1718796633083,-16372.63664895,0.00013698,2]
[329888328,1718796633094,-1818.49052966,0.00013698,2]
[329888330,1718796633103,-500.0,0.00013698,2]
[329888332,1718796633113,-200.0,0.00013698,2]
[329888334,1718796633123,-500.0,0.00013698,2]
[329888336,1718796633132,-1058.16,0.00013698,2]
[329888338,1718796633142,-239.03262332,0.00013698,2]
[329888340,1718796633151,-500.0,0.00013698,2]
[329888342,1718796633161,-500.0,0.00013698,2]
[329888344,1718796633170,-500.0,0.00013698,2]
[329888346,1718796633179,-500.0,0.00013698,2]
[329888347,1718796633188,-203.70105414,0.00013698,2]
[329888348,1718796633198,-500.0,0.00013698,2]
[329888349,1718796633207,-500.0,0.00013698,2]
[329888350,1718796633217,-500.0,0.00013698,2]
[329888351,1718796633226,-500.0,0.00013698,2]
[329888352,1718796633237,-558.97,0.00013698,2]
[329888353,1718796633246,-835.45,0.00013698,2]
[329888354,1718796633256,-500.0,0.00013698,2]
[329888355,1718796633265,-540.5,0.00013698,2]
[329888356,1718796633275,-194.6524464,0.00013698,2]
[329888357,1718796633285,-635.28,0.00013698,2]
[329888358,1718796633296,-500.0,0.00013698,2]
[329888359,1718796633306,-500.0,0.00013698,2]
[329888360,1718796633316,-727.42,0.00013698,2]
[329888361,1718796633326,-1107.74,0.00013698,2]
[329888362,1718796633337,-500.0,0.00013698,2]
[329888363,1718796633348,-1000.0,0.00013698,5]
[329888364,1718796633358,-467.39460189,0.00013698,2]
[329888365,1718796633368,-500.0,0.00013698,2]
[329888366,1718796633378,-542.55,0.00013698,2]
[329888367,1718796633387,-500.0,0.00013698,2]
[329888368,1718796633397,-500.0,0.00013698,2]
[329888369,1718796633406,-500.0,0.00013698,2]
[329888370,1718796633416,-500.0,0.00013698,2]
[329888371,1718796633425,-500.0,0.00013698,2]
[329888372,1718796633435,-500.0,0.00013698,2]
[329888373,1718796633445,-500.0,0.00013698,2]
[329888374,1718796633454,-311.97360493,0.00013698,2]
[329888375,1718796633464,-500.0,0.00013698,2]
[329888376,1718796633473,-500.0,0.00013698,2]
[329888377,1718796633483,-500.0,0.00013698,2]
[329888378,1718796633494,-500.0,0.00013698,2]
[329888379,1718796633503,-500.0,0.00013698,2]
[329888380,1718796633512,-509.97,0.00013698,2]
[329888381,1718796633521,-285.67002582,0.00013698,2]
[329888382,1718796633531,-988.91,0.00013698,2]
[329888383,1718796633540,-683.71,0.00013698,2]
[329888384,1718796633550,-500.0,0.00013698,2]
[329888385,1718796633559,-500.0,0.00013698,2]
[329888386,1718796633569,-500.0,0.00013698,2]
[329888387,1718796633579,-500.0,0.00013698,2]
[329888388,1718796633589,-500.0,0.00013698,2]
[329888389,1718796633599,-500.0,0.00013698,2]
[329888390,1718796633609,-500.0,0.00013698,2]
[329888391,1718796633619,-500.0,0.00013698,2]
[329888392,1718796633628,-525.32,0.00013698,2]
[329888393,1718796633640,-500.0,0.00013698,2]
[329888394,1718796633650,-500.0,0.00013698,2]
[329888395,1718796633659,-525.4,0.00013698,2]
[329888396,1718796633669,-589.43,0.00013698,2]
[329888397,1718796633679,-500.0,0.00013698,2]
[329888398,1718796633694,-545.31,0.00013698,2]
[329888399,1718796633704,-500.0,0.00013698,2]
[329888400,1718796633714,-882.36,0.00013698,2]
[329888401,1718796633724,-811.61,0.00013698,2]
[329888402,1718796633735,-598.24955335,0.00013698,2]
[329888403,1718796633744,-500.0,0.00013698,2]
[329888404,1718796633754,-500.0,0.00013698,2]
[329888405,1718796633763,-500.0,0.00013698,2]
[329888406,1718796633773,-500.0,0.00013698,2]
[329888407,1718796633784,-500.0,0.00013698,2]
[329888408,1718796633794,-637.41,0.00013698,2]
[329888409,1718796633804,-500.0,0.00013698,2]
[329888410,1718796633814,-500.0,0.00013698,2]
[329888411,1718796633824,-500.0,0.00013698,2]
[329888412,1718796633835,-500.0,0.00013698,2]
[329888413,1718796633844,-500.0,0.00013698,2]
[329888414,1718796633854,-500.0,0.00013698,2]
[329888415,1718796633864,-500.0,0.00013698,2]
[329888416,1718796633876,-446.96617642,0.00013698,2]
[329888417,1718796633886,-500.0,0.00013698,2]
[329888418,1718796633896,-500.0,0.00013698,2]
[329888419,1718796633906,-500.0,0.00013698,2]
[329888420,1718796633916,-620.32,0.00013698,2]
[329888421,1718796633927,-526.9,0.00013698,2]
[329888422,1718796633937,-641.58,0.00013698,2]
[329888423,1718796633947,-500.0,0.00013698,2]
[329888424,1718796633958,-500.0,0.00013698,2]
[329888425,1718796633968,-500.0,0.00013698,2]
[329888426,1718796633978,-500.0,0.00013698,2]
[329888427,1718796633991,-1220.72,0.00013698,2]
[329888428,1718796634005,-606.31,0.00013698,2]
[329888429,1718796634017,-670.69,0.00013698,2]
[329888430,1718796634029,-500.0,0.00013698,2]
[329888431,1718796634039,-690.61,0.00013698,2]
[329888432,1718796634050,-652.13,0.00013698,2]
[329888433,1718796634061,-578.71,0.00013698,2]
[329888434,1718796634071,-969.99,0.00013698,2]
[329888435,1718796634082,-500.0,0.00013698,2]
[329888436,1718796634092,-984.86,0.00013698,2]
[329888437,1718796634102,-623.9,0.00013698,2]
[329888438,1718796634113,-500.0,0.00013698,2]
[329888439,1718796634124,-757.28,0.00013698,2]
[329888440,1718796634134,-500.0,0.00013698,2]
[329888441,1718796634143,-500.0,0.00013698,2]
[329888442,1718796634152,-500.0,0.00013698,2]
[329888443,1718796634163,-500.0,0.00013698,2]
[329888444,1718796634173,-500.0,0.00013698,2]
[329888445,1718796634183,-500.0,0.00013698,2]
[329888446,1718796634193,-500.0,0.00013698,2]
[329888447,1718796634203,-558.9980531,0.00013698,2]
[329888448,1718796634213,-500.0,0.00013698,2]
[329888449,1718796634224,-221.78355447,0.00013698,2]
[329888450,1718796634234,-500.0,0.00013698,2]
[329888451,1718796634246,-831.87,0.00013698,2]
[329888452,1718796634256,-864.59,0.00013698,2]
[329888453,1718796634266,-542.28,0.00013698,2]
[329888454,1718796634276,-590.12,0.00013698,2]
[329888455,1718796634285,-1198.87,0.00013698,2]
[329888456,1718796634295,-406.75102328,0.00013698,2]
[329888457,1718796634306,-558.12,0.00013698,2]
[329888458,1718796634316,-500.0,0.00013698,2]
[329888459,1718796634326,-500.0,0.00013698,2]
[329888460,1718796634336,-500.0,0.00013698,2]
[329888461,1718796634351,-1094.52,0.00013698,2]
[329888462,1718796634361,-3084.99,0.00013698,2]
[329888463,1718796634372,-1450.86,0.00013698,2]
[329888464,1718796634382,-1175.09,0.00013698,2]
[329888465,1718796634399,-500.0,0.00013698,2]
[329888466,1718796634414,-500.0,0.00013698,2]
[329888467,1718796634429,-5000.0,0.00013698,2]
[329888468,1718796634445,-1777.8,0.00013698,2]
[329888469,1718796634457,-948.85,0.00013698,2]
[329888470,1718796634470,-1855.55,0.00013698,2]
[329888471,1718796634484,-780.7,0.00013698,2]
[329888472,1718796634502,-1047.75,0.00013698,2]
[329888473,1718796634516,-621.49,0.00013698,2]
[329888474,1718796634530,-1279.34,0.00013698,2]
[329888475,1718796634544,-500.0,0.00013698,2]
[329888476,1718796634557,-500.0,0.00013698,2]
[329888477,1718796634572,-580.52,0.00013698,2]
[329888478,1718796634587,-767.43,0.00013698,2]
[329888479,1718796634601,-500.0,0.00013698,2]
[329888480,1718796634613,-1748.71,0.00013698,2]
[329888481,1718796634626,-582.78,0.00013698,2]
[329888482,1718796634638,-500.0,0.00013698,2]
[329888483,1718796634651,-581.6,0.00013698,2]
[329888484,1718796634665,-1198.02,0.00013698,2]
[329888485,1718796634678,-501.76,0.00013698,2]